Cogmind - Beta 15 @@@ ROGUE MODE // 2025.10.12 @ 18:43:42 Player: Tereza Result: Destroyed by P-60 Hacker with Shock Rifle Performance ------------- Evolutions (3) 1500 Regions Visited (9) 1800 Robots Destroyed (158) 790 Value Destroyed (5602) 5602 Prototype IDs (2) 40 Alien Tech Used (0) 0 Bonus (1549) 1549 TOTAL SCORE: 11281 Bonus ------- High Alert Combat Kills 588 Follower Combat Kills 61 Entered Garrisons 400 Used RIF Installer 500 Cogmind --------- Core Integrity 0/700 Matter 190/300 Energy 290/290 System Corruption 9% Temperature Cool (0) Movement Core (950) Ox18 Location -7/Factory Parts ------- > --- POWER (1) -------- Improved Deuterium Engine > --- PROPULSION (4) --- (None) > --- UTILITY (6) ------ High-capacity Storage Unit Seismic Detector Core Analyzer Hacking Suite Relay Coupler [Swarmer] (16) > --- WEAPON (2) ------- Great Axe > --- INVENTORY (20) --- Improved Deuterium Engine Fission Core Wheel VTOL Module Huge Storage Unit Compact Matter Pod (0) Improved Sensor Array Transmission Jammer System Shield Relay Coupler [NC] (28) Relay Coupler [Sentry] (25) Relay Coupler [Hunter] (19) System Restoration Module High-powered Tractor Beam EM Pulse Cannon EM Pulse Cannon Flak Gun Heavy Missile Launcher Improved Datajack Remote Datajack Peak State ------------ > --- POWER ------------ Angular Momentum Engine > --- PROPULSION ------- Armored Treads Medium Treads Medium Treads Medium Treads > --- UTILITY ---------- High-capacity Storage Unit Advanced Sensor Array Advanced Signal Interpreter Salvage Targeting Computer Phase Shifter Hacking Suite > --- WEAPON ----------- Gauss Rifle Assault Cannon > --- INVENTORY -------- Improved Ion Engine Light Deuterium Engine Fission Core Medium Treads Medium Treads Huge Storage Unit Medium Matter Pod Transmission Jammer Improved Propulsion Shielding Improved Propulsion Shielding System Shield Relay Coupler [NC] High-powered Tractor Beam Light Assault Rifle Light Assault Rifle Heavy Assault Rifle Assault Cannon Gauss Cannon Improved Grenade Launcher Improved Datajack [Rating: 53] Favorites ----------- Power Ion Engine Engine Ion Engine Power Core Light Nuclear Core Propulsion Light Treads Treads Light Treads Leg Carbon-fiber Leg Wheel Compact Wheel Utility High-capacity Storage Unit Device Seismic Detector Storage High-capacity Storage Unit Processor Salvage Targeting Computer Hackware Hacking Suite Protection Hardened Medium Armor Plating Weapon Assault Rifle Ballistic Gun Assault Rifle Ballistic Cannon Assault Cannon Launcher Improved Grenade Launcher Special Weapon Remote Datajack Slashing Weapon Great Axe Special Melee Weapon Improved Datajack Build | -11 -10 -10 -10 -9 -8 -8 -7 -7 -7 ------- Run | Yrd Mat Min Exi Min Mat Gar Fac Gar Fac Slots Evolved 6 | . . . . . 4 . 2 . . Power . | . . . . . . . . . . Propulsion 2 | . . . . . 2 . . . . Utility 4 | . . . . . 2 . 2 . . Weapon . | . . . . . . . . . . Parts Attached 87 | 6 5 1 . 1 20 13 25 12 4 Power 8 | 1 . 1 . . 1 1 2 1 1 Engine 7 | 1 . 1 . . 1 1 2 . 1 Core 1 | . . . . . . . . 1 . Reactor . | . . . . . . . . . . Propulsion 25 | 2 . . . . 8 6 6 2 1 Treads 20 | 2 . . . . 8 6 4 . . Leg 2 | . . . . . . . . 2 . Wheel 3 | . . . . . . . 2 . 1 Hover . | . . . . . . . . . . Flight . | . . . . . . . . . . Utility 29 | 1 4 . . 1 5 2 10 5 1 Device 9 | . 1 . . 1 . 2 4 1 . Storage 3 | 1 2 . . . . . . . . Processor 6 | . 1 . . . 1 . 3 . 1 Hackware 4 | . . . . . . . 1 3 . Protection 7 | . . . . . 4 . 2 1 . Artifact . | . . . . . . . . . . Weapon 25 | 2 1 . . . 6 4 7 4 1 Energy Gun . | . . . . . . . . . . Energy Cannon . | . . . . . . . . . . Ballistic Gun 13 | 2 1 . . . 4 3 . 3 . Ballistic Cannon 7 | . . . . . 1 1 5 . . Launcher 1 | . . . . . . . 1 . . Special Weapon 1 | . . . . . . . . 1 . Impact Weapon . | . . . . . . . . . . Slashing Weapon 1 | . . . . . . . . . 1 Piercing Weapon . | . . . . . . . . . . Special Melee Weapon 2 | . . . . . 1 . 1 . . Unidentified Prototypes . | . . . . . . . . . . Parts Lost 53 | . 2 . . . 6 13 21 5 6 Power 5 | . 1 . . . . 1 2 1 . Propulsion 21 | . . . . . 2 7 8 . 4 Utility 11 | . . . . . 2 3 3 2 1 Weapon 16 | . 1 . . . 2 2 8 2 1 Highest Loss Streak 8 | . 1 . . . 1 4 8 2 6 To Critical Strikes 2 | . . . . . . 1 1 . . Average Backups 18 | 4 13 16 19 18 18 18 18 19 19 Power 2 | . 1 1 2 3 2 2 2 3 2 Propulsion 2 | 2 2 4 4 4 4 3 1 . 1 Utility 7 | . 5 7 7 7 6 7 9 12 11 Weapon 4 | . 2 3 4 3 4 4 4 1 2 Tool/Special . | . . . . . . . . . . Unused Backups 38 | . 4 . . . 10 2 3 . 19 Power 5 | . . . . . 2 . 1 . 2 Propulsion 7 | . 3 . . . 1 . . . 3 Utility 14 | . . . . . 1 2 1 . 10 Weapon 12 | . 1 . . . 6 . 1 . 4 Tool/Special . | . . . . . . . . . . Average Slot Usage (%) 89 | . 93 100 71 100 98 86 93 75 93 Engine 8 | . 8 14 14 14 9 8 6 . 5 Treads 26 | . 27 28 28 28 35 33 24 . . Wheel 1 | . . . . . . . 1 7 12 Device 8 | . 13 14 14 14 3 1 8 3 14 Storage 10 | . 14 14 14 14 9 9 7 7 7 Processor 8 | . . . . . 8 9 18 13 7 Hackware 2 | . . . . . . . 6 11 15 Protection 3 | . . . . . 13 6 2 5 . Ballistic Gun 11 | . 28 28 . 28 11 9 7 7 7 Ballistic Cannon 4 | . . . . . 6 8 6 5 . Peak Build Rating 53 | 6 9 9 9 10 27 33 53 39 40 Average Rating 25 | 4 8 9 7 9 22 28 46 32 37 On Entrance 16 | . 6 8 9 9 10 27 33 32 32 Naked Turns . | . . . . . . . . . . Heaviest Build 69 | 12 48 49 49 49 69 65 65 57 59 Greatest Support 112 | 40 40 40 40 40 88 96 112 16 26 Greatest Overweight (x) 5 | . 1 1 1 1 . . 5 3 3 Average Overweight (x) . | . . 1 1 1 . . . 2 2 Largest Inventory Capacity 20 | 8 20 20 20 20 20 20 20 20 20 Average Capacity 19 | 6 16 20 20 20 20 20 20 20 20 Most Carried 20 | 6 17 16 20 20 20 20 20 20 20 Average Carried 18 | 4 13 16 19 18 18 18 18 19 19 Final Capacity 20 | 8 20 20 20 20 20 20 20 20 20 Final Carried 20 | 6 17 16 18 19 20 19 18 20 20 Class Distribution -------------------- 73% | Mutant 25% | Scavenger-Mutant Dominant Class ---------------- Mutant | -10/Materials Mutant | -10/Mines Mutant | -10/Exiles Mutant | -9/Mines Scavenger-Mutant | -8/Materials Mutant | -8/Garrison Mutant | -7/Factory Scavenger-Mutant | -7/Garrison Scavenger-Mutant | -7/Factory Resources | -11 -10 -10 -10 -9 -8 -8 -7 -7 -7 ----------- Run | Yrd Mat Min Exi Min Mat Gar Fac Gar Fac Matter Collected 4513 | 301 459 . . 115 683 835 1544 391 185 Remotely . | . . . . . . . . . . Salvage Created 4690 | 102 599 . . 9 1043 594 1603 505 235 Parts 297 | 3 39 . . 6 65 47 98 25 14 Haulers Intercepted 6 | . 2 . . . 3 . 1 . . Recyclers Shooed 7 | . . . . . 2 . 5 . . Parts Field Recycled . | . . . . . . . . . . Retrieved Matter . | . . . . . . . . . . Parts Self-Destructed . | . . . . . . . . . . Prevented . | . . . . . . . . . . Kills | -11 -10 -10 -10 -9 -8 -8 -7 -7 -7 ------- Run | Yrd Mat Min Exi Min Mat Gar Fac Gar Fac Combat Hostiles Destroyed 121 | . 14 . . . 26 29 38 13 1 Melee 1 | . . . . . . . . . 1 Guns 55 | . 14 . . . 14 16 7 4 . Cannons 57 | . . . . . 12 13 24 8 . AOE 8 | . . . . . . . 7 1 . Classes Destroyed 16 | 2 5 . . . 2 2 5 . . Worker 10 | . 1 . . 1 1 . 5 . 2 Builder 1 | . . . . . . . 1 . . Tunneler 3 | 1 . . . 1 . . 1 . . Hauler 6 | . 2 . . . 3 . 1 . . Recycler 10 | 1 . . . . 2 . 5 . 2 Operator 2 | . . . . . 2 . . . . Watcher 5 | . 1 . . . 1 . 3 . . Swarmer 43 | . 6 . . . 11 13 7 6 . Cutter 3 | . . . . . . 3 . . . Grunt 49 | . 8 . . . 11 8 15 7 . Brawler 1 | . . . . . . . 1 . . Protector 1 | . . . . . . . 1 . . Sentry 8 | . . . . . 4 2 2 . . Specialist 1 | . . . . . . . 1 . . Hunter 7 | . . . . . . 3 4 . . Programmer 8 | . . . . . . . 7 . 1 Best Kill Streak 10 | 2 3 . . 2 5 6 10 6 3 Combat Bots Only 6 | . 3 . . . 4 6 5 6 1 Max Kills in Single Turn 3 | 1 1 . . 1 2 2 3 1 1 Gunslinging . | . . . . . . . . . . Exploded 2 | . . . . . . . 2 1 . Melee 1 | . . . . . . . . . 1 Uniques/NPCs Destroyed . | . . . . . . . . . . Combat | -11 -10 -10 -10 -9 -8 -8 -7 -7 -7 -------- Run | Yrd Mat Min Exi Min Mat Gar Fac Gar Fac Hostile Shots Fired 900 | . 63 . . . 119 218 385 82 33 Missed 288 | . 18 . . . 32 53 154 28 3 Hits 612 | . 45 . . . 87 165 231 54 30 Melee 8 | . . . . . . 8 . . . Projectile 604 | . 45 . . . 87 157 231 54 30 AOE 1 | . . . . . . 1 . . . Critical Strikes 18 | . . . . . 5 7 4 1 1 Part Disruptions 1 | . . . . . . . 1 . . Damage Taken 8181 | . 507 . . . 1116 2235 3038 833 452 Core 1033 | . 42 . . . 66 217 394 239 75 Absorbed by Shields 176 | . . . . . . . 176 . . Redirected to Shielding 103 | . . . . . . . . 103 . Regen/Repaired (Parts) 36 | . 36 . . . . . . . . Core Remaining (%) 77 | 100 . . . 83 . 48 . . . Volleys Fired 477 | 7 64 . . . 98 115 154 38 1 Largest 2 | 2 2 . . . 2 2 2 2 1 Hottest 76 | 40 40 . . . 60 65 76 74 25 Shots Fired 902 | 14 129 . . . 196 209 293 59 2 Gun 548 | 14 129 . . . 144 101 127 31 2 Cannon 337 | . . . . . 52 108 154 23 . Launcher 12 | . . . . . . . 12 . . Special 5 | . . . . . . . . 5 . Kinetic 885 | 14 129 . . . 196 209 281 54 2 Thermal . | . . . . . . . . . . Explosive 12 | . . . . . . . 12 . . Electromagnetic . | . . . . . . . . . . Robot Hit Streak 25 | 6 25 . . . 12 11 8 6 1 Robot Miss Streak 9 | 1 5 . . . 9 7 5 7 1 Penetration Max 1 | . . . . . . 1 . . . Secondary Targets 4 | . 3 . . . 1 . . . . Max Gunslinging Chain 1 | . 1 . . . 1 . . . . Shots Hit Robots 598 | 12 73 . . . 150 127 184 40 12 Core Hits 364 | 3 29 . . . 106 74 104 44 4 Critical Kills 4 | . 1 . . . 1 2 . . . Critical Parts Destroyed 3 | 1 . . . . 1 . 1 . . Critical Strikes 16 | 1 1 . . . 2 2 10 . . Destroy 7 | 1 1 . . . 2 2 1 . . Blast 9 | . . . . . . . 9 . . Melee Attacks 13 | . . . . . . . . . 13 Impact . | . . . . . . . . . . Slashing 13 | . . . . . . . . . 13 Piercing . | . . . . . . . . . . Sneak Attacks 3 | . . . . . . . . . 3 Combat Hostiles . | . . . . . . . . . . Follow-up Attacks . | . . . . . . . . . . Damage Inflicted 12146 | 153 949 . . 6 2042 2473 5268 683 572 Guns 4556 | 152 946 . . . 1132 929 1102 285 10 Cannons 5167 | . . . . . 910 1544 2315 398 . Explosions 1827 | . . . . . . . 1827 . . Melee 562 | . . . . . . . . . 562 Ramming 34 | 1 3 . . 6 . . 24 . . Kinetic 9723 | 152 946 . . . 2042 2473 3417 683 10 Thermal . | . . . . . . . . . . Explosive 1827 | . . . . . . . 1827 . . Electromagnetic . | . . . . . . . . . . Impact . | . . . . . . . . . . Slashing 562 | . . . . . . . . . 562 Piercing . | . . . . . . . . . . Highest Corruption 9 | . 3 3 3 3 . . 7 7 9 Average Corruption 3 | . 2 3 3 3 . . 3 7 7 Corruption Purged . | . . . . . . . . . . Corruption Blocked . | . . . . . . . . . . Effects 91 | . 5 1 27 8 . . 28 15 7 Message Errors 15 | . 1 . 4 1 . . 5 3 1 Matter Fused 22 | . 1 1 9 3 . . 4 4 . Heat Flow Errors 12 | . 1 . 3 1 . . 4 2 1 Energy Discharges 12 | . 1 . 4 1 . . 4 1 1 Parts Rejected 2 | . . . . . . . 2 . . Parts Fused 1 | . . . . . . . . 1 . Data Loss (minor) 12 | . . . 2 1 . . 5 2 2 Data Loss (major) 3 | . . . 2 . . . . 1 . Misfires 5 | . 1 . . . . . 2 1 1 Alerts 5 | . . . 3 1 . . . . 1 Weapon Failures 2 | . . . . . . . 2 . . Overload Shots . | . . . . . . . . . . Overflow Damage 120 | . . . . . . 4 50 . 66 Projectiles 27 | . . . . . . 4 23 . . Explosions 27 | . . . . . . . 27 . . Melee 66 | . . . . . . . . . 66 Knockbacks 98 | . . . . . 27 25 28 18 . Impact . | . . . . . . . . . . Kinetic 92 | . . . . . 26 23 28 15 . Secondary 6 | . . . . . 1 2 . 3 . Self-Inflicted Damage 63 | . . . . . . . 63 . . Shots 2 | . . . . . . . 2 . . Rammed 10 | 1 1 . . 2 . . 6 . . Targets Rammed 12 | 1 1 . . 4 . . 6 . . Kicked . | . . . . . . . . . . Crushed 2 | . . . . 2 . . . . . Highest Temperature 287 | . 236 . 200 115 113 126 242 287 117 Average Temperature 41 | . 67 . 95 57 17 41 43 97 65 Received Heat Transfer 2113 | . 183 . . . 513 513 733 171 . Effects 2 | . . . . . . . 1 1 . Energy Bleed 1 | . . . . . . . 1 . . Interference 1 | . . . . . . . . 1 . Siege Activations . | . . . . . . . . . . Martial Activations . | . . . . . . . . . . Shielding Activations . | . . . . . . . . . . Robots Disrupted . | . . . . . . . . . . Combat Hostiles . | . . . . . . . . . . Robots Corrupted . | . . . . . . . . . . Combat Hostiles . | . . . . . . . . . . Parts Fried . | . . . . . . . . . . Impact Corruptions . | . . . . . . . . . . Robots Melted . | . . . . . . . . . . Combat Hostiles . | . . . . . . . . . . Parts Melted 2 | . . . . . . . . 2 . Heat Transferred . | . . . . . . . . . . Parts Sabotaged . | . . . . . . . . . . Parts Stolen . | . . . . . . . . . . Parts Stripped . | . . . . . . . . . . Power Chain Reactions . | . . . . . . . . . . Alert | -11 -10 -10 -10 -9 -8 -8 -7 -7 -7 ------- Run | Yrd Mat Min Exi Min Mat Gar Fac Gar Fac Maximum Alert Level 4 | . . . . . 1 4 2 3 2 Low Security (%) 45 | 100 100 100 . 100 89 6 14 . . Level 1 17 | . . . . . 10 23 27 . 78 Level 2 27 | . . . . . . 31 57 65 21 Level 3 8 | . . . . . . 32 . 34 . Level 4 1 | . . . . . . 5 . . . Level 5 . | . . . . . . . . . . High Security . | . . . . . . . . . . Max Security . | . . . . . . . . . . Peak Influence 1111 | 10 125 . . 5 224 1111 588 800 420 Initial 583 | . . . . . . 73 583 410 420 Average 301 | . 43 . . . 109 577 388 625 364 Influence Increases 4069 | 10 436 . . 10 733 1208 1167 440 65 Destroy 0b10 Robot/C 2500 | . 280 . . . 520 680 740 260 20 Destroy 0b10 Robot/NC 195 | 10 20 . . 10 45 . 85 5 20 Destroy Leader 392 | . 56 . . . 98 30 188 20 . Allied During Kill 11 | . . . . . . 11 . . . Successful Hack 89 | . 34 . . . 24 7 . . 24 Disable Machine 45 | . . . . . . . 45 . . Anti-Garrison Action 400 | . . . . . . 350 . 50 . Destroy Structure 122 | . 1 . . . 1 55 64 . 1 Lose Combat Pursuer 315 | . 45 . . . 45 75 45 105 . Influence Decreases 3794 | 10 436 . . 10 620 210 1692 226 590 Entered New Map 1124 | . . . . . . 40 528 176 380 Time Decay 1710 | 10 426 . . 10 460 . 654 . 150 Lost Part 520 | . 10 . . . 60 130 210 50 60 Lost Ally 40 | . . . . . . 40 . . . Purge Threat 400 | . . . . . 100 . 300 . . Squads Dispatched 19 | . 2 . . . 1 . 16 . . Investigation 4 | . 1 . . . . . 3 . . Extermination 5 | . . . . . . . 5 . . Reinforcement 4 | . 1 . . . 1 . 2 . . Assault 3 | . . . . . . . 3 . . Garrison 3 | . . . . . . . 3 . . Intercept . | . . . . . . . . . . Searches Triggered . | . . . . . . . . . . Construction Impeded 1 | . . . . . . . 1 . . Haulers Reinforced 1 | . . . . . . . 1 . . Active Scanning Responses . | . . . . . . . . . . Cargo Convoy Interrupts 1 | . . . . . . . 1 . . Stealth | -11 -10 -10 -10 -9 -8 -8 -7 -7 -7 --------- Run | Yrd Mat Min Exi Min Mat Gar Fac Gar Fac Distress Signals 4 | . 1 . . . 3 . . . . Communications Jammed . | . . . . . . . . . . Distress Signals . | . . . . . . . . . . Times Spotted 189 | . 27 . . . 53 35 53 19 2 Peak Tracking Total 7 | . 6 . . . 6 6 6 7 2 Tactical Retreats 13 | . 1 . . . 3 4 2 3 . Traps | -11 -10 -10 -10 -9 -8 -8 -7 -7 -7 ------- Run | Yrd Mat Min Exi Min Mat Gar Fac Gar Fac Traps Triggered 12 | . 3 . . . . 3 2 4 . Indirectly . | . . . . . . . . . . Trap Hack Attempts 22 | . . . . . 9 . 13 . . Triggered . | . . . . . . . . . . Disarmed . | . . . . . . . . . . Reprogrammed 3 | . . . . . 2 . 1 . . Reused . | . . . . . . . . . . Traps Extracted . | . . . . . . . . . . Installed . | . . . . . . . . . . Triggered . | . . . . . . . . . . Machines | -11 -10 -10 -10 -9 -8 -8 -7 -7 -7 ---------- Run | Yrd Mat Min Exi Min Mat Gar Fac Gar Fac Machines Disabled 9 | . 1 . . . . 4 3 1 . Max in Single Turn 1 | . 1 . . . . 1 1 1 . Garrison Relay 5 | . . . . . . 4 . 1 . Machines Repaired . | . . . . . . . . . . Machines Dismantled . | . . . . . . . . . . Machines Sabotaged . | . . . . . . . . . . Overloaded Fab Kills . | . . . . . . . . . . Hacking | -11 -10 -10 -10 -9 -8 -8 -7 -7 -7 --------- Run | Yrd Mat Min Exi Min Mat Gar Fac Gar Fac Machines Accessed 31 | . 7 . 4 . 7 3 7 . 3 Terminals 18 | . 5 . . . 5 3 3 . 2 Fabricators 3 | . . . . . . . 2 . 1 Repair Stations 1 | . 1 . . . . . . . . Recycling Units 3 | . 1 . . . 1 . 1 . . Scanalyzers . | . . . . . . . . . . Garrison Access 2 | . . . . . 1 . 1 . . Total Hacks 67 | . 21 . 4 . 14 6 14 . 8 Successful 39 | . 13 . 4 . 10 2 8 . 2 Failed 27 | . 8 . . . 3 4 6 . 6 Catastrophic 4 | . 1 . . . 1 1 . . 1 Database Lockouts 1 | . . . . . 1 . . . . Manual 36 | . 13 . 1 . 8 . 7 . 7 Terminals 46 | . 16 . . . 10 6 7 . 7 Fabricators 3 | . . . . . . . 2 . 1 Repair Stations 2 | . 2 . . . . . . . . Recycling Units 10 | . 3 . . . 3 . 4 . . Scanalyzers . | . . . . . . . . . . Garrison Access 2 | . . . . . 1 . 1 . . Terminal Hacks 19 | . 6 . 4 . 5 2 2 . . Record 4 | . . . 4 . . . . . . Robot Analysis 6 | . 5 . . . 1 . . . . Prototype ID Bank 1 | . . . . . 1 . . . . Open Door 1 | . . . . . . 1 . . . Emergency Access Points 1 | . . . . . . 1 . . . Unreport Threat 3 | . . . . . 1 . 2 . . Locate Traps 1 | . . . . . 1 . . . . Hauler Manifests 2 | . 1 . . . 1 . . . . Fabricator Hacks 1 | . . . . . . . 1 . . Network Status 1 | . . . . . . . 1 . . Repair Station Hacks 2 | . 2 . . . . . . . . Scan Component 1 | . 1 . . . . . . . . Repair 1 | . 1 . . . . . . . . Recycling Unit Hacks 10 | . 3 . . . 3 . 4 . . Recycle Component 1 | . . . . . . . 1 . . Process 4 | . 1 . . . 1 . 2 . . Report Inventory 2 | . 1 . . . 1 . . . . Retrieve Matter 3 | . 1 . . . 1 . 1 . . Scanalyzer . | . . . . . . . . . . Garrison Access Hacks 2 | . . . . . 1 . 1 . . Unlock Access 2 | . . . . . 1 . 1 . . Unauthorized Hacks 5 | . 2 . . . 1 . . . 2 Terminals 5 | . 2 . . . 1 . . . 2 Track 1 | . 1 . . . . . . . . Botnet 4 | . 1 . . . 1 . . . 2 Fabricators . | . . . . . . . . . . Repair Stations . | . . . . . . . . . . Recycling Units . | . . . . . . . . . . Scanalyzers . | . . . . . . . . . . Garrison Access . | . . . . . . . . . . Data Cores Recovered 1 | . . . . . 1 . . . . Used . | . . . . . . . . . . Hacking Detections 21 | . 6 . . . 4 2 6 . 3 Full Trace Events 3 | . 1 . . . . 1 1 . . Feedback Events . | . . . . . . . . . . Feedback Blocked . | . . . . . . . . . . Robot Schematics Acquired . | . . . . . . . . . . Robots Built . | . . . . . . . . . . Authchips . | . . . . . . . . . . Time . | . . . . . . . . . . Total Robot Build Rating . | . . . . . . . . . . Part Schematics Acquired . | . . . . . . . . . . Parts Built . | . . . . . . . . . . Authchips . | . . . . . . . . . . Time . | . . . . . . . . . . Total Part Build Rating . | . . . . . . . . . . Parts Repaired 1 | . 1 . . . . . . . . Time 26 | . 26 . . . . . . . . Parts Recycled 1 | . . . . . . . 1 . . Recycled Matter 205 | . 53 . . . 140 . 12 . . Retrieved Matter 226 | . 53 . . . 161 . 12 . . Retrieved Components . | . . . . . . . . . . Parts Scanalyzed . | . . . . . . . . . . Part Schematics Acquired . | . . . . . . . . . . Parts Damaged . | . . . . . . . . . . Bothacking | -11 -10 -10 -10 -9 -8 -8 -7 -7 -7 ------------ Run | Yrd Mat Min Exi Min Mat Gar Fac Gar Fac Used RIF Installer 1 | . . . . . . 1 . . . Robots Hacked 4 | . . . . . . . . 4 . Non-combat . | . . . . . . . . . . Combat 4 | . . . . . . . . 4 . Robot Hacks Applied 4 | . . . . . . . . 4 . spike_heat 2 | . . . . . . . . 2 . overload_power 2 | . . . . . . . . 2 . Relay Couplers Released 18 | . . . . . . 13 . 5 . Machine Destruction 18 | . . . . . . 13 . 5 . Attached 3 | . . . . . . . . 3 . Fabnet Peak Effective % . | . . . . . . . . . . Robots Rewired 2 | . . . . . . 2 . . . Allies Hacked . | . . . . . . . . . . Hacks Repelled . | . . . . . . . . . . Allies | -11 -10 -10 -10 -9 -8 -8 -7 -7 -7 -------- Run | Yrd Mat Min Exi Min Mat Gar Fac Gar Fac Total Allies 2 | . . . . . . 2 . . . Largest Group 2 | . . . . . . 2 . . . Highest-Rated Group 56 | . . . . . . 56 . . . Highest-Rated Ally 31 | . . . . . . 31 . . . Total Orders . | . . . . . . . . . . Ally Attacks 18 | . . . . . . 18 . . . Total Damage 401 | . . . . . . 401 . . . Kills 5 | . . . . . . 5 . . . Allies Corrupted . | . . . . . . . . . . Allies Melted . | . . . . . . . . . . Intel | -11 -10 -10 -10 -9 -8 -8 -7 -7 -7 ------- Run | Yrd Mat Min Exi Min Mat Gar Fac Gar Fac Active Infowar (turns) 5825 | . 1302 64 1583 563 589 . 1411 . 313 Sensors 1151 | . . . . . . . 1151 . . Seismic 4674 | . 1302 64 1583 563 589 . 260 . 313 Jamming 10 | . . . . . . . 10 . . Robot Analysis Total 6 | . 5 . . . 1 . . . . Derelict Logs Recovered 1 | . . . . 1 . . . . . Drone Launches . | . . . . . . . . . . Drone Recoveries . | . . . . . . . . . . Exploration | -11 -10 -10 -10 -9 -8 -8 -7 -7 -7 ------------- Run | Yrd Mat Min Exi Min Mat Gar Fac Gar Fac Turns Passed 9925 | 101 1322 64 1583 563 1435 1607 2435 498 317 Spaces Moved 4252 | 45 544 27 445 230 660 773 1084 236 208 Core 7 | 7 . . . . . . . . . Treads 3630 | 38 544 27 445 230 660 773 913 . . Legs . | . . . . . . . . . . Wheels 615 | . . . . . . . 171 236 208 Hover . | . . . . . . . . . . Flight . | . . . . . . . . . . Fastest Speed 50 | 50 160 240 240 240 160 160 130 130 120 Average Speed 174 | 142 197 240 240 240 160 161 159 139 123 Slowest Speed 240 | 160 240 240 240 240 160 163 163 145 145 Overloaded Moves . | . . . . . . . . . . Propulsion Burnouts . | . . . . . . . . . . Robots Hopped . | . . . . . . . . . . Potential Cave-ins . | . . . . . . . . . . Cave-ins Triggered . | . . . . . . . . . . Exploration Rate (%) 48 | 5 93 10 91 64 55 90 36 29 7 Regions Visited 9 Branch Regions 3 Pre-discovered Areas 1 | . . . . 1 . . . . . Known Exits Taken 2 | . . . . . 1 . 1 . . Unknown Exits Taken 5 | 1 1 1 1 1 . . . . . Scrap Searched 2 | . . . . 2 . . . . . Spaces Dug 2 | . . . . . . . 1 . 1 Terrain Destroyed 75 | . . . . . . 1 73 . 1 Melee 1 | . . . . . . . . . 1 Projectile 17 | . . . . . . 1 16 . . AOE 57 | . . . . . . . 57 . . Terrain Rammed . | . . . . . . . . . . Walls Destroyed . | . . . . . . . . . . Machines Disabled . | . . . . . . . . . . Actions | -11 -10 -10 -10 -9 -8 -8 -7 -7 -7 --------- Run | Yrd Mat Min Exi Min Mat Gar Fac Gar Fac Total 5854 | 64 666 27 962 236 876 928 1497 350 248 Wait 789 | . 30 . 512 . 34 6 177 23 7 Move 4245 | 45 543 26 444 229 660 772 1084 234 208 Hop . | . . . . . . . . . . Pick Up 95 | 6 16 . 2 1 27 9 22 5 7 Fast Attach 28 | 6 2 . . . 1 4 5 7 3 Attach 44 | . 2 1 2 . 9 9 18 2 1 Detach 7 | . 1 . 2 . . . . 3 1 Swap 39 | . 2 . . 1 14 2 14 5 1 Drop 43 | . 5 . . 1 24 2 4 1 6 Fire 477 | 7 64 . . . 98 115 154 38 1 Melee 13 | . . . . . . . . . 13 Ram 3 | . . . . . . . 3 . . Kick . | . . . . . . . . . . Crush 8 | . 1 . . 4 . . 3 . . Escape Stasis 32 | . . . . . . . . 32 . Rewire 9 | . . . . . . 9 . . . Trap 22 | . . . . . 9 . 13 . . Miscellaneous . | . . . . . . . . . . Route ------- -11/Scrapyard -10/Materials (discovered 5 exits: [*Mat x3] / [*Min x2]) -10/Mines -10/Exiles -9/Mines (discovered 2 exits: *Mat x2) -8/Materials (discovered 4 exits: *Fac / [*Sto x2] / Gar) -8/Garrison (discovered 4 exits: *Fac x3 / [*Mat]) -7/Factory -7/Garrison -7/Factory History --------- Turn | Location | Event 8 | -11/Scrapyard | Discovered new exit (range 16) 102 | -11/Scrapyard | Entered Materials 311 | -10/Materials | Build established: Mutant 484 | -10/Materials | Discovered new exit (range 9) 514 | -10/Materials | Repaired Lgt. Treads 749 | -10/Materials | Discovered new exit (range 16) 840 | -10/Materials | Discovered new exit (range 8) 1019 | -10/Materials | Discovered new exit (range 16) 1240 | -10/Materials | Discovered new exit (range 8) 1424 | -10/Materials | Entered Mines 1466 | -10/Mines | Deemed a non-threat by the Exiles lab entrance 1469 | -10/Mines | Discovered new exit (range 5) 1488 | -10/Mines | Entered Exiles 1488 | -10/Exiles | Found Exiles lab abandoned 2536 | -10/Exiles | Discovered new exit (range 10) 3071 | -10/Exiles | Entered Mines 3153 | -9/Mines | Discovered new exit (range 9) 3324 | -9/Mines | Discovered new exit (range 5) 3333 | -9/Mines | Learned location of Zion (-6) 3634 | -9/Mines | Entered Materials 3634 | -8/Materials | Evolved 4 slots: Propulsion x2, Utility x2 3907 | -8/Materials | Central database locked down 4100 | -8/Materials | Build established: Scavenger-Mutant 4293 | -8/Materials | Discovered new exit (range 16) 4312 | -8/Materials | Discovered new exit (range 2) 4454 | -8/Materials | Discovered new exit (range 10) 5069 | -8/Materials | Identified exit to Garrison 5069 | -8/Materials | Entered Garrison 5117 | -8/Garrison | Triggered checkpoint 5145 | -8/Garrison | Garrison Relay disabled 5159 | -8/Garrison | Triggered checkpoint 5256 | -8/Garrison | Discovered new exit (range 6) 5343 | -8/Garrison | Triggered checkpoint 5441 | -8/Garrison | Triggered checkpoint 5482 | -8/Garrison | Build established: Mutant 5483 | -8/Garrison | Garrison Relay disabled 5597 | -8/Garrison | Discovered new exit (range 11) 5691 | -8/Garrison | Triggered checkpoint 5733 | -8/Garrison | Triggered checkpoint 5887 | -8/Garrison | Installed Relay Interface Framework 5989 | -8/Garrison | Lost 4 parts (1p2n1w) 5999 | -8/Garrison | Triggered checkpoint 6060 | -8/Garrison | Garrison Relay disabled 6109 | -8/Garrison | Discovered new exit (range 10) 6215 | -8/Garrison | Core integrity fell below 50% 6242 | -8/Garrison | Lost 3 parts (2n1u) 6529 | -8/Garrison | Triggered checkpoint 6567 | -8/Garrison | Garrison Relay disabled 6657 | -8/Garrison | Discovered new exit (range 10) 6676 | -8/Garrison | Entered Factory 6676 | -7/Factory | Evolved 2 slots: Utility x2 7076 | -7/Factory | First assault squad dispatched 7481 | -7/Factory | Cargo convoy interrupted 7865 | -7/Factory | Lost 4 parts (1p1n2u) 8575 | -7/Factory | Garrison activated, responded to threat 9010 | -7/Factory | Lost 8 parts (1p3n1u3w) 9046 | -7/Factory | Core integrity fell below 50% 9111 | -7/Factory | Identified exit to Garrison 9111 | -7/Factory | Entered Garrison 9169 | -7/Garrison | Triggered checkpoint 9231 | -7/Garrison | Garrison Relay disabled 9395 | -7/Garrison | Triggered checkpoint 9455 | -7/Garrison | Core integrity fell below 20% 9458 | -7/Garrison | Triggered checkpoint 9559 | -7/Garrison | Triggered checkpoint 9586 | -7/Garrison | Discovered new exit (range 9) 9609 | -7/Garrison | Entered Factory 9708 | -7/Factory | Build established: Scavenger-Mutant 9926 | -7/Factory | Destroyed by P-60 Hacker with Shock Rifle Last Messages --------------- 09876_ K-01 Serf destroyed. 09880_ Acquired 18 matter. 09882_ Dropped Com. Wheel. 09882_ Acquired Wheel. 09887_ ALERT: All DSF locations entering lockdown mode. 09890_ Imp. Heat Sink destroyed. 09890_ Carbon-fiber Leg destroyed. 09905_ Destroyed Gravmag System. 09905_ Com. Wheel destroyed. 09907_ Destroyed Remote Datajack. 09908_ Wheel destroyed. 09910_ Destroyed Shock Rifle. 09911_ P-60 Hacker resets P-60 Hacker, system corruption cleaned. 09913_ Carbon-fiber Leg destroyed. 09913_ P-60 Hacker destroyed. 09914_ System corrupted: Heat flow error (+142). 09916_ Hpw. Shotgun destroyed. 09921_ Destroyed Shock Rifle. Map ----- +----------------------------------------------------+ | ?????????????????????????????????????????????????? | | ?????????????????????????????????????????????????? | | ?????????????????????????????????????????????????? | | ?????????????????????????????????????????????????? | | ?????????????????????????????????????????????????? | | ?????????????????????????????????????????????????? | | ?????????????????????????????????????????????????? | | ?????????????????????????????????????????????????? | | ?????????????????????????????????????????????????? | | ?????????????????????????????????????????????????? | | ?????????????????????????????????????????????????? | | ?????????????????????????????????????????????????? | | ?????????????????????????????????????????????????? | | ?????????????????????????????????????????????????? | | ?????????????????????????????????????????????????? | | ??????????????######????#####????????????????????? | | ??????????????# ??? #????????????????????? | | ??????????????# """?"" #????????????????????? | | ??????????????# """""" #????????????????????? | | ??????????????# """""" #????????????????????? | | ??????????????# """""" #????????????????????? | | ??????????????# ! #????????????????????? | | ??????????????# """""" #????????????????????? | | ??????????????#[ """""" #????????????????????? | | ??????????????# """""" #????????????????????? | | #?????????????# """"""@ #????????????????????? | | #?????????????# *%[p #????????????????????? | | ####+################+#####;############+#???????? | | == ????? | | ????? | | ????? | | ????? | | ?????? | | ?????? | | ??????? | | ####+############## ###################??????? | | ! #????### # ??????????????? | | * #????#"" # """ ????????????????? | | ! #????#T + """""?????????????????? | | ] """" #????### # """""?????????????????? | | """"^######## #! ???????????????? | | """" + ##########???????????????? | | ! """" ##########+########???????????????????? | | ! ! """" #??#! #???????????????????? | | !]] """" #??# #???????????????????? | | ]] """" #??# """ """ #???????????????????? | | #??# !!! """ """ #???????????????????? | | #??# !!! """ """ #???????????????????? | | ############??# !!! #???????????????????? | | ??????????????###############????????????????????? | +----------------------------------------------------+ Best States ------------- Heat Dissipation 48 Energy Generation 18 Energy Capacity 300 Matter Stores 300 Matter Capacity 300 Sight Range 16 Robot Scan Range 16 Terrain Scan Density 10 Jamming Range 12 Armor Coverage 450 Propulsion Shielding 66 Phase Shifting 5 Evasion (%) 45 Core Analysis 6 Recoil Reduction 4 Salvage Targeting 2 Offensive Hacking 10 Relay Coupler Types 1 Relay Coupler Value 31 Item Schematics ----------------- None Robot Schematics ------------------ None Fabricated ------------ Nothing Repaired ---------- Lgt. Treads | 74% | -10/Materials Alien Tech Used ----------------- None Achievements -------------- None Challenges ------------ None Game ------ Seed AmuletTechLog Manual? 0 Play Time 00:57:34 Cumulative 203.1 hours Start 2025.10.12 @ 13:36:34 End 2025.10.12 @ 18:43:42 Sessions 3 Manual Loads 0 Difficulty Rogue Special Mode None Game No. 254 Rogue 254 Adventurer 0 Explorer 0 Win Type - Total 3 Types 3/0/0/0/0/0/0/0/0/0 Lore% 71 Gallery% 56 Achievement% 55 Wizard Run 0 Options --------- Layout 1 ASCII 0 Keyboard 1 Movement Numpad Keybinds 0 Fullscreen 2 Font 24/Smallcaps Map View 50x35 Zoom Use 0% Tactical HUD 1 Map Filters NONE Filters NONE Steam 1 RUN: 8078d4bb-9eac-40dc-a97b-b92a9a84a8dc